fUST/lending_fUST_20260418
["ID","MTS","AMOUNT","RATE_DAILY","PERIOD"]
[420676436,1776457130045,535.41578835,0.00024649,120]
[420676437,1776457130347,535.41578835,0.00024649,120]
[420676438,1776457130826,535.41578835,0.00024649,120]
[420676439,1776457131115,535.41578835,0.00024649,120]
[420676440,1776457131402,535.41578835,0.00024649,120]
[420676441,1776457131690,535.41578835,0.00024649,120]
[420676442,1776457131976,535.41578835,0.00024649,120]
[420676443,1776457132288,535.41578835,0.00024649,120]
[420676444,1776457132592,535.41578835,0.00024649,120]
[420676445,1776457132913,535.41578835,0.00024649,120]
[420676446,1776457133231,535.41578835,0.00024649,120]
[420676447,1776457133548,535.41578835,0.00024649,120]
[420676448,1776457133852,535.41578835,0.00024649,120]
[420676449,1776457134161,535.41578835,0.00024649,120]
[420676450,1776457205860,152.0,0.00024649,120]
[420676451,1776457222372,2998.21090193,0.00024649,120]
[420676452,1776457244973,222.28531376,0.00024649,120]
[420676453,1776457345409,500.0,0.00024649,120]
[420676454,1776457386440,151.0,0.00024658,120]
[420676455,1776457411268,151.0,0.00024658,120]
[420676456,1776457419972,151.0,0.00024658,120]
[420676457,1776457427338,151.0,0.00024658,120]
[420676458,1776457465561,151.0,0.00024658,120]
[420676459,1776457473265,151.0,0.00024658,120]
[420676460,1776457481608,151.0,0.00024658,120]
[420676461,1776457535977,151.0,0.00024658,120]
[420676462,1776457548140,151.0,0.00024658,120]
[420676463,1776457556070,151.0,0.00024658,120]
[420676464,1776457562991,151.0,0.00024658,120]
[420676465,1776457569815,151.0,0.00024658,120]
[420676466,1776457578465,151.0,0.00024658,120]
[420676467,1776457586918,151.0,0.00024658,120]
[420676468,1776457595374,151.0,0.00024658,120]
[420676469,1776457603565,151.0,0.00024658,120]
[420676470,1776457644753,500.0,0.00024649,120]
[420676471,1776457652146,-200.0,7.038e-05,2]
[420676472,1776457776451,-200.0,7.037e-05,2]
[420676473,1776457797103,200.005834,0.00024649,120]
[420676517,1776457832453,-1737.37011137,6.897e-05,2]
[420676520,1776457832475,-3262.62988863,6.897e-05,2]
[420676521,1776457832485,-518.0,6.897e-05,2]
[420676522,1776457832495,-239.80224273,6.967e-05,2]
[420676523,1776457832504,-196.47298424,7.145e-05,2]
[420676575,1776457838674,-1496.073949,6.828e-05,2]
[420676577,1776457838684,-82.31194272,7.145e-05,2]
[420676579,1776457838693,-223.23192329,7.532e-05,2]
[420676581,1776457838703,-3119.63533715,7.538e-05,2]
[420676583,1776457838712,-300.0,7.637e-05,2]
[420676585,1776457838721,-6299.62261271,7.638e-05,2]
[420676587,1776457838731,-188.079246,7.735e-05,2]
[420676589,1776457838740,-300.0,7.784e-05,2]
[420676591,1776457838749,-300.0,7.784e-05,2]
[420676593,1776457838759,-300.0,7.784e-05,2]
[420676595,1776457838768,-300.0,7.784e-05,2]
[420676596,1776457838777,-300.0,7.784e-05,2]
[420676598,1776457838787,-300.0,7.784e-05,2]
[420676600,1776457838796,-300.0,7.784e-05,2]
[420676602,1776457838806,-300.0,7.784e-05,2]
[420676604,1776457838815,-300.0,7.784e-05,2]
[420676606,1776457838825,-300.0,7.784e-05,2]
[420676608,1776457838834,-300.0,7.784e-05,2]
[420676610,1776457838844,-300.0,7.784e-05,2]
[420676612,1776457838854,-300.0,7.784e-05,2]
[420676614,1776457838863,-300.0,7.784e-05,2]
[420676616,1776457838873,-300.0,7.784e-05,2]
[420676618,1776457838883,-500.0,7.793e-05,2]
[420676620,1776457838892,-500.0,7.793e-05,2]
[420676622,1776457838902,-500.0,7.793e-05,2]
[420676624,1776457838912,-500.0,7.793e-05,2]
[420676626,1776457838921,-500.0,7.793e-05,2]
[420676629,1776457838930,-500.0,7.793e-05,2]
[420676631,1776457838940,-191777.51833284,7.817e-05,2]
[420676634,1776457838952,-12415.27441913,7.817e-05,2]
[420676636,1776457838963,-37663.0,7.817e-05,2]
[420676664,1776457840964,-475.5589574,7.817e-05,2]
[420676789,1776457843434,-3928.60947472,7.817e-05,2]
[420676791,1776457843489,-17653.3050076,7.817e-05,2]
[420676792,1776457843501,-2943.40244164,7.817e-05,2]
[420676797,1776457843599,-1650.95049077,7.817e-05,2]
[420676878,1776457846623,-3348.65498217,7.817e-05,2]
[420676880,1776457862999,-300.0,7.816e-05,2]
[420676881,1776457863017,-300.0,7.817e-05,2]
[420676882,1776457863029,-705.66911589,7.817e-05,2]
[420683629,1776457949550,536.0,0.00024649,120]
[420685009,1776457964893,500.0,0.00024649,120]
[420688434,1776458003484,-300.0,6.902e-05,2]
[420689140,1776458010868,263.0,0.00024649,120]
[420689320,1776458019158,300.00208194,0.00024649,120]
[420689321,1776458024084,841.76,0.00024649,120]
[420689322,1776458025373,2069.89,0.00024649,120]
[420689323,1776458030160,984.09,0.00024649,120]
[420689324,1776458038145,2255.4,0.00024649,120]
[420689325,1776458154234,571.0,0.00024652,120]
[420689326,1776458238069,1060.0,0.00024652,120]
[420689329,1776458262390,500.0,0.00024652,120]
[420689330,1776458315803,631.0,0.00024652,120]
[420689331,1776458398840,197.0,0.00024652,120]
[420689332,1776458416119,300.00208194,0.00024652,120]
[420689333,1776458444379,300.0,6.628e-05,2]
[420689334,1776458475317,152.0,0.00024652,120]
[420690418,1776458545339,500.0,0.00024652,120]
[420693450,1776458736935,269.6,0.00024652,120]
[420695845,1776458855485,500.0,0.00024652,120]
[420698358,1776459033084,-376.24148499,6.138e-05,2]
[420698359,1776459033096,-2189.70657224,6.138e-05,2]
[420698360,1776459033106,-546.62725478,6.2e-05,2]
[420698361,1776459033116,-509.0,6.2e-05,2]
[420698362,1776459033125,-995.22558999,6.301e-05,2]
[420698363,1776459033145,-4004.77441001,6.301e-05,2]
[420698364,1776459033154,-280.56848977,6.333e-05,2]
[420698365,1776459033164,-300.0,6.364e-05,2]
[420698366,1776459033174,-2395.75764259,6.902e-05,2]
[420698367,1776459033185,-327.88278331,6.902e-05,2]
[420698368,1776459033195,-300.0,6.969e-05,2]
[420698369,1776459033204,-300.0,6.969e-05,2]
[420698370,1776459033214,-300.0,6.969e-05,2]
[420698371,1776459033224,-300.0,6.969e-05,2]
[420698372,1776459033233,-300.0,6.969e-05,2]
[420698373,1776459033242,-300.0,6.969e-05,2]
[420698374,1776459033253,-300.0,6.969e-05,2]
[420698375,1776459033262,-300.0,6.969e-05,2]
[420698376,1776459033272,-300.0,6.969e-05,2]
[420698377,1776459033282,-300.0,6.969e-05,2]
[420698378,1776459033294,-300.0,6.969e-05,2]
[420698379,1776459033304,-300.0,6.969e-05,2]
[420698380,1776459033314,-300.0,6.969e-05,2]
[420698381,1776459033323,-300.0,6.969e-05,2]
[420698382,1776459033333,-300.0,6.969e-05,2]
[420698383,1776459033343,-420.0,7e-05,2]
[420698384,1776459033352,-600.0,7.107e-05,2]
[420698385,1776459033362,-500.0,7.516e-05,2]
[420698386,1776459033372,-500.0,7.516e-05,2]
[420698387,1776459033381,-500.0,7.516e-05,2]
[420698388,1776459033391,-500.0,7.516e-05,2]
[420698389,1776459033400,-500.0,7.516e-05,2]
[420698390,1776459033409,-583.63994494,7.516e-05,2]
[420698391,1776459033419,-500.0,7.516e-05,2]
[420698392,1776459033428,-500.0,7.516e-05,2]
[420698393,1776459033437,-500.0,7.516e-05,2]
[420698394,1776459033446,-500.0,7.516e-05,2]
[420698395,1776459033455,-500.0,7.516e-05,2]
[420698396,1776459033464,-203.73392887,7.516e-05,2]
[420698397,1776459033473,-368.3509612,7.516e-05,2]
[420698398,1776459033483,-500.0,7.516e-05,2]
[420698399,1776459033492,-500.0,7.516e-05,2]
[420698400,1776459033503,-500.0,7.516e-05,2]
[420698401,1776459033512,-500.0,7.516e-05,2]
[420698402,1776459033521,-232.97228862,7.516e-05,2]
[420698403,1776459033531,-500.0,7.516e-05,2]
[420698404,1776459033540,-500.0,7.516e-05,2]
[420698405,1776459033549,-500.0,7.516e-05,2]
[420698406,1776459033559,-500.0,7.516e-05,2]
[420698407,1776459033569,-500.0,7.516e-05,2]
[420698408,1776459033578,-500.0,7.516e-05,2]
[420698410,1776459033587,-500.0,7.516e-05,2]
[420698412,1776459033596,-500.0,7.516e-05,2]
[420698414,1776459033605,-500.0,7.516e-05,2]
[420698415,1776459033614,-495.15987153,7.516e-05,2]
[420698416,1776459033623,-500.0,7.516e-05,2]
[420698417,1776459033632,-500.0,7.516e-05,2]
[420698418,1776459033641,-500.0,7.516e-05,2]
[420698419,1776459033650,-500.0,7.516e-05,2]
[420698420,1776459033659,-500.0,7.516e-05,2]
[420698421,1776459033668,-500.0,7.516e-05,2]
[420698423,1776459033677,-500.0,7.516e-05,2]
[420698424,1776459033687,-41136.6265051,7.517e-05,2]
[420698527,1776459038877,-46588.51305982,7.517e-05,2]
[420698529,1776459038887,-1785.00951315,7.517e-05,2]
[420698532,1776459038903,-5199.95634752,7.517e-05,2]
[420698534,1776459038915,-186710.18417559,7.517e-05,2]
[420698536,1776459038925,-500.0,7.593e-05,2]
[420698538,1776459038934,-500.0,7.593e-05,2]
[420698540,1776459038947,-154.26315445,7.593e-05,2]
[420698542,1776459038957,-500.0,7.593e-05,2]
[420698544,1776459038967,-500.0,7.593e-05,2]
[420698546,1776459038976,-500.0,7.593e-05,2]
[420698549,1776459038986,-500.0,7.593e-05,2]
[420698551,1776459038996,-613.33608714,7.593e-05,2]
[420698553,1776459039007,-500.0,7.593e-05,2]
[420698555,1776459039017,-3186.50487695,7.593e-05,2]
[420698557,1776459039026,-3186.50487691,7.602e-05,2]
[420698559,1776459039035,-3186.50487691,7.611e-05,2]
[420698561,1776459039044,-1000.0,7.616e-05,2]
[420698563,1776459039053,-155.0,7.616e-05,2]
[420698565,1776459039062,-132824.96165323,7.617e-05,2]
[420698884,1776459045006,-0.00341146,7.541e-05,2]
[420698885,1776459045027,-725.88886142,7.541e-05,2]
[420698886,1776459045139,-568.21772712,7.541e-05,2]
[420698887,1776459045149,-1211.05047132,7.617e-05,2]
[420698890,1776459046987,-649.11,7.617e-05,2]
[420698910,1776459067480,409.67,0.00024652,120]
[420698912,1776459152337,500.0,0.00024652,120]
[420698913,1776459161597,500.0,0.00024652,120]
[420698914,1776459193080,509.0,0.00024652,120]
[420698915,1776459264224,250.0,0.00024652,120]
[420698916,1776459384775,542.0,0.00024652,120]
[420698918,1776459444679,500.0,0.00024612,120]
[420698919,1776459463722,1007.0,0.00024612,120]
[420698921,1776459535882,599.0,0.00024612,120]
[420698922,1776459595435,1307.049999,0.00024612,120]
[420698923,1776459599420,187.0,0.00024612,120]
[420699361,1776459663331,152.0,0.00024612,120]
[420700753,1776459746720,500.0,0.00024649,120]
[420705000,1776460051268,-200.0,6.027e-05,2]
[420705012,1776460052445,500.0,0.00024649,120]
[420705307,1776460075591,199.99924758,0.00024649,120]
[420706092,1776460139686,1233.1019419,0.00024657,120]
[420706294,1776460231799,-567.76,5.906e-05,2]
[420706359,1776460238062,-478.85715799,5.906e-05,2]
[420706360,1776460238172,-1375.45459844,5.906e-05,2]
[420706361,1776460238182,-505.0,5.906e-05,2]
[420706362,1776460238191,-300.0,5.966e-05,2]
[420706363,1776460238200,-1200.0,5.966e-05,2]
[420706364,1776460238209,-1173.09256948,5.967e-05,2]
[420706365,1776460238229,-3826.90743052,5.967e-05,2]
[420706366,1776460238239,-286.77276467,5.997e-05,2]
[420706367,1776460238248,-5498.97853679,6.137e-05,2]
[420706368,1776460238256,-300.0,6.15e-05,2]
[420706369,1776460238266,-10985.5432685,6.237e-05,2]
[420706370,1776460238275,-300.0,6.259e-05,2]
[420706371,1776460238284,-300.0,6.259e-05,2]
[420706372,1776460238294,-300.0,6.259e-05,2]
[420706373,1776460238303,-300.0,6.259e-05,2]
[420706374,1776460238312,-300.0,6.259e-05,2]
[420706375,1776460238322,-300.0,6.259e-05,2]
[420706376,1776460238332,-300.0,6.259e-05,2]
[420706377,1776460238341,-300.0,6.259e-05,2]
[420706378,1776460238351,-300.0,6.259e-05,2]
[420706379,1776460238360,-300.0,6.259e-05,2]
[420706380,1776460238369,-300.0,6.259e-05,2]
[420706381,1776460238379,-300.0,6.259e-05,2]
[420706382,1776460238387,-300.0,6.259e-05,2]
[420706383,1776460238397,-300.0,6.259e-05,2]
[420706384,1776460238406,-300.0,6.259e-05,2]
[420706385,1776460238415,-12293.89381379,6.337e-05,2]
[420706386,1776460238424,-600.0,6.383e-05,2]
[420706387,1776460238433,-500.0,6.434e-05,2]
[420706388,1776460238442,-500.0,6.434e-05,2]
[420706389,1776460238451,-500.0,6.434e-05,2]
[420706390,1776460238461,-233.6859,6.434e-05,2]
[420706391,1776460238470,-500.0,6.434e-05,2]
[420706392,1776460238478,-500.0,6.434e-05,2]
[420706393,1776460238488,-500.0,6.434e-05,2]
[420706394,1776460238497,-500.0,6.434e-05,2]
[420706395,1776460238507,-500.0,6.434e-05,2]
[420706396,1776460238516,-583.55,6.434e-05,2]
[420706397,1776460238526,-500.0,6.434e-05,2]
[420706398,1776460238535,-620.0,6.434e-05,2]
[420706399,1776460238546,-500.0,6.434e-05,2]
[420706400,1776460238556,-486.29722886,6.434e-05,2]
[420706401,1776460238565,-500.0,6.434e-05,2]
[420706402,1776460238576,-13602.24435916,6.437e-05,2]
[420706403,1776460238586,-13633.67652696,6.537e-05,2]
[420706404,1776460238595,-420.0,6.563e-05,2]
[420706405,1776460238604,-1680.0,6.563e-05,2]
[420706406,1776460238614,-720.0,7.021e-05,2]
[420706407,1776460238625,-500.0,7.116e-05,2]
[420706408,1776460238636,-500.0,7.116e-05,2]
[420706409,1776460238646,-500.0,7.116e-05,2]
[420706410,1776460238657,-399.71084264,7.116e-05,2]
[420706411,1776460238668,-500.0,7.116e-05,2]
[420706412,1776460238677,-500.0,7.116e-05,2]
[420706413,1776460238686,-500.0,7.116e-05,2]
[420706414,1776460238695,-500.0,7.116e-05,2]
[420706415,1776460238705,-500.0,7.116e-05,2]
[420706416,1776460238714,-650.0,7.116e-05,2]
[420706417,1776460238723,-500.0,7.116e-05,2]
[420706418,1776460238733,-188531.88525634,7.117e-05,2]
[420706419,1776460238747,-96374.13439014,7.117e-05,2]
[420706420,1776460238792,-943.36171223,7.117e-05,2]
[420706424,1776460240379,-2284.60625744,7.117e-05,2]
[420706438,1776460243053,-2244.0,7.117e-05,2]
[420706442,1776460243333,-431.83675393,7.117e-05,2]
[420706444,1776460243357,-24547.84723997,7.117e-05,2]
[420706445,1776460243366,-628.201,7.171e-05,2]
[420706446,1776460243375,-40077.09861724,7.217e-05,2]
[420706447,1776460243385,-587.0,7.219e-05,2]
[420706448,1776460243394,-537.6845,7.559e-05,2]
[420706449,1776460243403,-445.202766,7.559e-05,2]
[420706450,1776460243412,-2150.738,7.559e-05,2]
[420706451,1776460243422,-7523.59514272,7.559e-05,2]
[420706452,1776460243431,-155.87997123,7.565e-05,2]
[420706453,1776460243440,-622.89636503,7.565e-05,2]
[420706454,1776460243449,-557.5788265,7.614e-05,2]
[420706455,1776460243458,-365.13931002,7.669e-05,2]
[420706461,1776460246145,-522.03326885,7.565e-05,2]
[420706462,1776460246156,-213.06993306,7.669e-05,2]
[420706463,1776460246166,-599.60298507,7.724e-05,2]
[420706464,1776460246175,-864.0,7.724e-05,2]
[420706465,1776460246185,-621.78829552,7.779e-05,2]
[420706466,1776460246194,-644.79446246,7.834e-05,2]
[420706467,1776460246205,-500.0,7.863e-05,2]
[420706468,1776460246214,-500.0,7.863e-05,2]
[420706469,1776460246224,-160.0,7.887e-05,2]
[420706470,1776460246233,-160.0,7.887e-05,2]
[420706471,1776460246242,-668.65185757,7.889e-05,2]
[420706472,1776460246252,-151.0,7.935e-05,2]
[420706473,1776460246262,-150.0,7.935e-05,2]
[420706474,1776460246271,-150.494,7.935e-05,2]
[420706475,1776460246280,-150.0,7.935e-05,2]
[420706476,1776460246290,-500.0,7.935e-05,2]
[420706477,1776460246299,-1406.0,7.935e-05,2]
[420706478,1776460246308,-645.0,7.935e-05,2]
[420706479,1776460246318,-2208.0,7.935e-05,2]
[420706480,1776460246327,-693.3919763,7.944e-05,2]
[420706481,1776460246336,-213.23,7.945e-05,2]
[420706482,1776460246346,-213.23,7.945e-05,2]
[420706483,1776460246356,-213.24,7.945e-05,2]
[420706484,1776460246365,-167.27,7.945e-05,2]
[420706485,1776460246374,-167.28,7.945e-05,2]
[420706486,1776460246384,-338.39186231,7.997e-05,2]
[420706487,1776460246396,-719.04747942,7.999e-05,2]
[420706488,1776460246405,-16131.05989754,8e-05,2]
[420706489,1776460246430,-300.0,8e-05,2]
[420706490,1776460286116,3480.0,4.006e-05,2]
[420706515,1776460348191,500.0,0.00024649,120]
[420706519,1776460385390,483.0,0.00024649,120]
[420706522,1776460473894,237.0,0.00024649,120]
[420706527,1776460611921,515.0,0.00024649,120]
[420706528,1776460644532,500.0,0.00024606,120]
[420706531,1776460706896,957.0,0.00024606,120]
[420706535,1776460776917,569.0,0.00024606,120]
[420706538,1776460842403,178.0,0.00024606,120]
[420706540,1776460921688,152.0,0.00024606,120]
[420706541,1776460944443,500.0,0.00024606,120]
[420706544,1776461244394,500.0,0.00024606,120]
[420706572,1776461432076,-4385.044197,6.384e-05,2]
[420706573,1776461432087,-576.63314209,6.384e-05,2]
[420706574,1776461432099,-38.32266091,6.384e-05,2]
[420706575,1776461432108,-511.0,6.384e-05,2]
[420706576,1776461432118,-1093.73378429,6.448e-05,2]
[420706577,1776461432128,-1199.0,6.513e-05,2]
[420706578,1776461432137,-280.88971232,6.68e-05,2]
[420706579,1776461432147,-455.5310146,6.797e-05,2]
[420706580,1776461432157,-1884.07196201,7.203e-05,2]
[420706738,1776461444936,-568.21772712,7.131e-05,2]
[420706739,1776461444946,-1403.78227288,7.203e-05,2]
[420706750,1776461446447,-4129.12919311,7.203e-05,2]
[420706751,1776461446458,-173.8603386,7.37e-05,2]
[420706752,1776461446467,-462.208299,7.382e-05,2]
[420706753,1776461446477,-469.32879694,7.403e-05,2]
[420706754,1776461446487,-693.79329318,7.403e-05,2]
[420706755,1776461446496,-2772.39799956,7.403e-05,2]
[420706756,1776461446505,-537.6845,7.626e-05,2]
[420706757,1776461446514,-2150.738,7.626e-05,2]
[420706758,1776461446524,-557.5788265,7.681e-05,2]
[420706759,1776461446533,-578.20924308,7.736e-05,2]
[420706760,1776461446542,-209.73379847,7.741e-05,2]
[420706761,1776461446552,-599.60298507,7.791e-05,2]
[420706762,1776461446562,-621.78829552,7.846e-05,2]
[420706763,1776461446571,-160.0,7.872e-05,2]
[420706764,1776461446580,-160.0,7.872e-05,2]
[420706765,1776461446590,-500.0,7.893e-05,2]
[420706766,1776461446600,-500.0,7.893e-05,2]
[420706767,1776461446609,-500.0,7.893e-05,2]
[420706768,1776461446618,-500.0,7.893e-05,2]
[420706769,1776461446628,-644.79446246,7.901e-05,2]
[420706770,1776461446637,-500.0,7.91e-05,2]
[420706771,1776461446647,-500.0,7.91e-05,2]
[420706772,1776461446657,-500.0,7.91e-05,2]
[420706773,1776461446667,-500.0,7.91e-05,2]
[420706774,1776461446676,-500.0,7.91e-05,2]
[420706775,1776461446685,-500.0,7.91e-05,2]
[420706776,1776461446695,-500.0,7.91e-05,2]
[420706777,1776461446704,-500.0,7.91e-05,2]
[420706778,1776461446714,-500.0,7.91e-05,2]
[420706779,1776461446723,-500.0,7.91e-05,2]
[420706780,1776461446732,-500.0,7.91e-05,2]
[420706781,1776461446742,-500.0,7.91e-05,2]
[420706782,1776461446751,-234.79758985,7.91e-05,2]
[420706783,1776461446760,-500.0,7.91e-05,2]
[420706784,1776461446770,-175.95,7.91e-05,2]
[420706785,1776461446779,-276.25524765,7.91e-05,2]
[420706786,1776461446788,-180.0,7.91e-05,2]
[420706787,1776461446798,-500.0,7.91e-05,2]
[420706788,1776461446808,-500.0,7.91e-05,2]
[420706789,1776461446819,-350.0,7.91e-05,2]
[420706790,1776461446829,-482.45997118,7.911e-05,2]
[420706791,1776461446841,-3832.14967302,7.911e-05,2]
[420706792,1776461446855,-802.0264,7.911e-05,2]
[420706793,1776461545382,500.0,0.00024606,120]
[420706794,1776461564851,283.92907929,0.00024606,120]
[420706795,1776461565152,283.92907929,0.00024606,120]
[420706796,1776461565642,283.92907929,0.00024606,120]
[420706798,1776461669972,459.0,0.00024606,120]
[420706799,1776461704979,8711.75214459,0.00024606,120]
[420706800,1776461706036,24908.47179866,0.00024606,120]
[420706801,1776461706599,34928.85123568,0.00024606,120]
[420706802,1776461759080,225.0,0.00024658,120]
[420706803,1776461845261,500.0,0.00024658,120]
[420706806,1776461891697,489.0,0.00024658,120]
[420706808,1776461992928,909.0,0.00024658,120]
[420706811,1776462074050,541.0,0.00024658,120]
[420706812,1776462139061,169.0,0.00024658,120]
[420706813,1776462144972,500.0,0.00024658,120]
[420706822,1776462233506,152.0,0.00024658,120]
[420706823,1776462338803,269.6,0.00024658,120]
[420706825,1776462371973,10000.0,0.000246,120]
[420706826,1776462390194,10000.0,0.000246,120]
[420706828,1776462445304,500.0,0.00024658,120]
[420706841,1776462632371,-2501.47216158,6.935e-05,2]
[420706842,1776462632384,-2498.52783842,6.935e-05,2]
[420706843,1776462632394,-300.0,7.005e-05,2]
[420706844,1776462632404,-300.0,7.005e-05,2]
[420706845,1776462632414,-1200.0,7.005e-05,2]
[420706846,1776462632425,-519.0,7.005e-05,2]
[420706847,1776462632435,-286.63,7.046e-05,17]
[420706848,1776462632445,-295.76942794,7.077e-05,2]
[420706849,1776462632454,-300.0,7.55e-05,2]
[420706850,1776462632464,-300.0,7.55e-05,2]
[420706851,1776462632473,-300.0,7.55e-05,2]
[420706852,1776462632483,-300.0,7.55e-05,2]
[420706853,1776462632494,-300.0,7.55e-05,2]
[420706854,1776462632504,-300.0,7.55e-05,2]
[420706855,1776462632516,-300.0,7.55e-05,2]
[420706856,1776462632527,-203.18388229,7.55e-05,2]
[420706857,1776462632542,-96.81611771,7.55e-05,2]
[420706858,1776462632551,-300.0,7.55e-05,2]
[420706859,1776462632562,-300.0,7.55e-05,2]
[420706860,1776462632571,-300.0,7.55e-05,2]
[420706861,1776462632581,-300.0,7.55e-05,2]
[420706862,1776462632591,-2540.2564605,7.556e-05,2]
[420706863,1776462632600,-227.7743638,7.556e-05,2]
[420706864,1776462632613,-274.7866362,7.556e-05,2]
[420706865,1776462632622,-6191.52628016,7.556e-05,2]
[420706866,1776462632633,-11288.75427974,7.556e-05,2]
[420706867,1776462632643,-229.83432848,7.564e-05,2]
[420706868,1776462632652,-500.0,7.61e-05,2]
[420706869,1776462632662,-368.382013,7.61e-05,2]
[420706870,1776462632674,-131.617987,7.61e-05,2]
[420706871,1776462632684,-500.0,7.61e-05,2]
[420706872,1776462632694,-329.43090994,7.61e-05,2]
[420706873,1776462632722,-170.56909006,7.61e-05,2]
[420706874,1776462632732,-500.0,7.61e-05,2]
[420706875,1776462632741,-500.0,7.61e-05,2]
[420706876,1776462632750,-500.0,7.61e-05,2]
[420706877,1776462632760,-500.0,7.61e-05,2]
[420706878,1776462632769,-938.91094938,7.611e-05,2]
[420706891,1776462638754,-555.17796117,7.61e-05,2]
[420706892,1776462638764,-500.0,7.61e-05,2]
[420706893,1776462638773,-144.82203883,7.61e-05,2]
[420706894,1776462638785,-18.75809117,7.61e-05,2]
[420706895,1776462638795,-500.0,7.61e-05,2]
[420706896,1776462638804,-500.0,7.61e-05,2]
[420706897,1776462638814,-500.0,7.61e-05,2]
[420706898,1776462638823,-500.0,7.61e-05,2]
[420706899,1776462638833,-500.0,7.61e-05,2]
[420706900,1776462638842,-500.0,7.61e-05,2]
[420706901,1776462638851,-500.0,7.61e-05,2]
[420706902,1776462638860,-500.0,7.61e-05,2]
[420706903,1776462638870,-500.0,7.61e-05,2]
[420706904,1776462638881,-500.0,7.61e-05,2]
[420706905,1776462638891,-187.18000715,7.61e-05,2]
[420706906,1776462638903,-153.8,7.61e-05,2]
[420706907,1776462638912,-500.0,7.61e-05,2]
[420706908,1776462638922,-500.0,7.61e-05,2]
[420706910,1776462638931,-500.0,7.61e-05,2]
[420706912,1776462638941,-377.0,7.61e-05,2]
[420706913,1776462638951,-500.0,7.61e-05,2]
[420706914,1776462638962,-500.0,7.61e-05,2]
[420706915,1776462638972,-500.0,7.61e-05,2]
[420706916,1776462638981,-500.0,7.61e-05,2]
[420706917,1776462638991,-500.0,7.61e-05,2]
[420706918,1776462639000,-500.0,7.61e-05,2]
[420706919,1776462639010,-187.58746672,7.61e-05,2]
[420706920,1776462639019,-751712.34303311,7.611e-05,2]
[420706921,1776462639028,-343.83725923,7.693e-05,2]
[420706922,1776462639038,-500.0,7.693e-05,2]
[420706923,1776462639047,-500.0,7.693e-05,2]
[420706924,1776462639057,-500.0,7.693e-05,2]
[420706925,1776462639066,-500.0,7.693e-05,2]
[420706926,1776462639075,-461.67526834,7.706e-05,2]
[420706927,1776462639085,-537.6845,7.706e-05,2]
[420706928,1776462639094,-696.73805806,7.706e-05,2]
[420706953,1776462641174,-611.42793442,7.706e-05,2]
[420706996,1776462646806,-842.57200752,7.706e-05,2]
[420706997,1776462646816,-151.0,7.711e-05,2]
[420706998,1776462646826,-557.5788265,7.761e-05,2]
[420706999,1776462646836,-265.08020002,7.793e-05,2]
[420707000,1776462646845,-500.0,7.793e-05,2]
[420707001,1776462646855,-500.0,7.793e-05,2]
[420707002,1776462646864,-554.2382046,7.8e-05,2]
[420707003,1776462646874,-578.20924308,7.816e-05,2]
[420707004,1776462646883,-110.01167222,7.87e-05,2]
[420707045,1776462745530,500.0,0.00024658,120]
[420707047,1776462792200,150.0,8.4e-05,30]
[420707048,1776462799679,368.0,0.00024658,120]
[420707050,1776462979223,5421.98,0.00024658,120]
[420707051,1776462981451,5421.98,0.00024658,120]
[420707052,1776462982788,436.0,0.00024658,120]
[420707053,1776462983761,5422.0,0.00024658,120]
[420707054,1776463044159,500.0,0.00024586,120]
[420707055,1776463071052,214.0,0.00024658,120]
[420707057,1776463203926,465.0,0.00024586,120]
[420707065,1776463293394,863.0,0.00024586,120]
[420707066,1776463345635,500.0,0.00024586,120]
[420707067,1776463373581,514.0,0.00024586,120]
[420707069,1776463436615,160.0,0.00024586,120]
[420707071,1776463520632,152.0,0.00024586,120]
[420707072,1776463644908,500.0,0.00024586,120]